Workbook

Sheet Simulador
A1: SIMULADOR | FGTS Saque Aniversário
L4: PCE 3.5.2
C7: Metodo de Simulação | D7: Saldo FGTS | E7: 2 | G7: =IF(D7="Valor Financiado","Saldo Mínimo FGTS","Liberado Cliente") -> Liberado Cliente | I7: =IFERROR(IF(AND(D11="",D13=""),"",Calculo!$H$5),"") -> 7626.190523
C9: Data Nascimento | D9: 2000-01-01 | G9: =IF(G7="Saldo Mínimo FGTS","","IOF") -> IOF | I9: =IF(G9="","",IF(I7="","",IF(AND(D11="",D13=""),"",Calculo!$H$6))) -> 206.2208951
C11: Saldo FGTS | D11: 15000 | G11: Prazo (anos) | I11: =IF(I7="","",D15) -> 5
C13: Valor Financiado | G13: Taxa de Juros | I13: =IF(I7="","",D17) -> 0.0204
C15: Prazo (anos) | D15: 5 | G15: Valor total FGTS Reservado | I15: =IF(AND(D11="",D13=""),"",Calculo!$H$8) -> 12066.92
C17: Taxa de juros a.m. | D17: 0.0204 | G17: Saldo FGTS Restante | I17: =IF(AND(D11="",D13=""),"",Calculo!$H$9) -> 2933.08
G19: Observação: | H19: =IF(AND(D11="",D13=""),"Preencher Dados da Simulação",IF(AND(D13<>"",I7=""),"Clicar no botão Calcular",Calculo!$H$21)) -> 
C23: Tabela FGTS | D23: Alíquota | E23: Adicional | G23: Nº Parcela | H23: Data de Vencimento | I23: Valor da Parcela
C24: 0 | D24: 0.5 | E24: 0 | G24: 1 | H24: =IF(H19="Clicar no botão Calcular","",IF(AND(D11="",D13=""),"",Calculo!H13)) -> 2022-01-01 | I24: =IF(H19="Clicar no botão Calcular","",IF(AND(D11="",D13=""),"",Calculo!I13)) -> 3400
C25: 500 | D25: 0.4 | E25: 50 | G25: 2 | H25: =IF(H19="Clicar no botão Calcular","",IF(AND(D11="",D13=""),"",Calculo!H14)) -> 2023-01-01 | I25: =IF(H19="Clicar no botão Calcular","",IF(AND(D11="",D13=""),"",Calculo!I14)) -> 2890
C26: 1000 | D26: 0.3 | E26: 150 | G26: 3 | H26: =IF(H19="Clicar no botão Calcular","",IF(AND(D11="",D13=""),"",Calculo!H15)) -> 2024-01-01 | I26: =IF(H19="Clicar no botão Calcular","",IF(AND(D11="",D13=""),"",Calculo!I15)) -> 2392
C27: 5000 | D27: 0.2 | E27: 650 | G27: 4 | H27: =IF(H19="Clicar no botão Calcular","",IF(AND(D11="",D13=""),"",Calculo!H16)) -> 2025-01-01 | I27: =IF(H19="Clicar no botão Calcular","",IF(AND(D11="",D13=""),"",Calculo!I16)) -> 1913.6
C28: 10000 | D28: 0.15 | E28: 1150 | G28: 5 | H28: =IF(H19="Clicar no botão Calcular","",IF(AND(D11="",D13=""),"",Calculo!H17)) -> 2026-01-01 | I28: =IF(H19="Clicar no botão Calcular","",IF(AND(D11="",D13=""),"",Calculo!I17)) -> 1471.32
C29: 15000 | D29: 0.1 | E29: 1900 | G29: Total | I29: =IF(H19="Clicar no botão Calcular","",IF(AND(D11="",D13=""),"",SUM(I24:I28))) -> 12066.92
C30: 20000 | D30: 0.05 | E30: 2900
C33: *Valores apresentados são estimados, para obter a condição oficial é necessário realizar o cadastro da proposta pelo sistema

Sheet Calculo (hidden)
C1: Resumo | M1: Cálculo | AG1: Configurações
Y3: Tabela FGTS | AG3: Feriados | AI3: Lista Supensa
B4: Entrada | C4: Resumo | D4: Replay | G4: Resumo | Y4: Tabela FGTS | Z4: Alíquota | AA4: Parcela Adicional | AI4: Saldo FGTS | AJ4: Saldo FGTS
B5: =IF(Simulador!D7="Saldo FGTS",AI4,AI5) -> Saldo FGTS | C5: Metodo de Simulação | D5: =B5 -> Saldo FGTS | G5: =IF(D5="Saldo FGTS","Liberado Cliente","Saldo FGTS") -> Liberado Cliente | H5: =IF(D5="Saldo FGTS",T15,IF(AA31=1000000,"",P25)) -> 7626.190523 | I5: =H5/$H$8 -> 0.6319914711 | Y5: 0 | Z5: 0.5 | AA5: 0 | AI5: Valor Financiado | AJ5: Valor Financiado
B6: =Simulador!D9 -> 2000-01-01 | C6: Data Nascimento | D6: 2000-01-01 | G6: IOF | H6: =IF(D5="Saldo FGTS",S15,IF(AA31=1000000,"",P25)) -> 206.2208951 | I6: =H6/$H$8 -> 0.01708977064 | Y6: 500.01 | Z6: 0.4 | AA6: 50
B7: =Simulador!D11 -> 15000 | C7: Saldo FGTS | D7: =B7 -> 15000 | G7: taxa | H7: =D10 -> 0.0204 | Y7: 1000.01 | Z7: 0.3 | AA7: 150 | AI7: Troco mínimo | AJ7: 500
B8: =Simulador!D13 -> 0 | C8: Valor Financiado | D8: 0 | G8: Valor total pago | H8: =IF(D5="Saldo FGTS",N15,IF(AA31=1000000,"",N25)) -> 12066.92 | I8: =H8/$H$8 -> 1 | Y8: 5000.01 | Z8: 0.2 | AA8: 650
B9: =Simulador!D15 -> 5 | C9: Prazo (anos) | D9: 5 | G9: Saldo FGTS Restante | H9: =IF(G5="Saldo FGTS",IF(AA31=1000000,"",H5-H8),D7-H8) -> 2933.08 | I9: =H9/$H$8 -> 0.2430678251 | Y9: 10000.01 | Z9: 0.15 | AA9: 1150
B10: =Simulador!D17 -> 0.0204 | C10: Taxa de juros a.m. | D10: 0.0204 | G10: Juros | H10: =IF(G5="Saldo FGTS",IF(AA31=1000000,"",H8-D8),H8-H5) -> 4440.729477 | I10: =H10/$H$8 -> 0.3680085289 | Y10: 15000.01 | Z10: 0.1 | AA10: 1900
C11: 1ºvcto | D11: =D22 -> 2022-01-01 | Y11: 20000.01 | Z11: 0.05 | AA11: 2900
G12: Fluxo de Vencimento
G13: 1 | H13: =M17 -> 2022-01-01 | I13: =IF($D$5="Saldo FGTS",N17,N27) -> 3400 | M13: Simulação por Saldo FGTS
C14: Regra de vencimento | G14: 2 | H14: =M18 -> 2023-01-01 | I14: =IF($D$5="Saldo FGTS",N18,N28) -> 2890 | P14: Saldo FGTS | R14: VP | S14: IOF | T14: Lib. Cliente | W14: Meta Encontrar Saldo
C15: Parâmetro Dias | D15: 10 | G15: 3 | H15: =M19 -> 2024-01-01 | I15: =IF($D$5="Saldo FGTS",N19,N29) -> 2392 | M15: Data de Vencimento | N15: =SUM(N17:N21) -> 12066.92 | P15: =D7 -> 15000 | R15: =SUM(R17:R21) -> 7832.411418 | S15: =SUM(S17:S21)+R15*$AA$20 -> 206.2208951 | T15: =R15-S15 -> 7626.190523 | W15: =SUM(N17:N21)-SUM(W17:W21) -> 4937.52 | Z15: CET | AA15: =IFERROR(XIRR(N16:N21,M16:M21),1000000) -> 0.2785188615
C16: hoje | D16: =TODAY() -> 2021-08-17 | G16: 4 | H16: 2025-01-01 | I16: =IF($D$5="Saldo FGTS",N20,N30) -> 1913.6 | M16: =D30 -> 2021-08-17 | N16: =-SUM(R17:R21) -> -7832.411418 | Z16: Taxa Ano | AA16: =(1+AA15)^(360/365)-1 -> 0.2742228763
C17: Valida Data | D17: =IF(OR(WEEKDAY(D16)=1,WEEKDAY(D16)=7,AG:AG=D16), "Não é dia Útil","É dia Útil") -> É dia Útil | G17: 5 | H17: 2026-01-01 | I17: =IF($D$5="Saldo FGTS",N21,N31) -> 1471.32 | M17: =D22 -> 2022-01-01 | N17: =P15*O17+VLOOKUP(O17,$Z$5:$AA$11,2,0) -> 3400 | O17: =IF(P15>=$Y$11,$Z$11,IF(AND(P15<$Y$11,P15>=$Y$10),$Z$10,IF(AND(P15<$Y$10,P15>=$Y$9),$Z$9,IF(AND(P15<$Y$9,P15>=$Y$8),$Z$8,IF(AND(P15<$Y$8,P15>=$Y$7),$Z$7,IF(AND(P15<$Y$7,P15>=$Y$6),$Z$6,IF(AND(P15<$Y$6,P15>=$Y$5),$Z$5))))))) -> 0.15 | P17: =P15-N17 -> 11600 | Q17: =M17-$M$16 -> 137 | R17: =N17/(1+$D$10)^(Q17/30) -> 3100.467588 | S17: =IF(Q17>$AA$21,$AA$21,Q17)*$AA$19*R17 -> 34.83065289 | W17: 2289.99 | Z17: Taxa mês conf. | AA17: =(1+AA16)^(1/12)-1 -> 0.02039999971
C18: Hoje Ajustado | D18: =IF(D17="É dia Útil",D16,WORKDAY(D16,1,)) -> 2021-08-17 | M18: =EDATE(M17,12) -> 2023-01-01 | N18: =P17*O18+VLOOKUP(O18,$Z$5:$AA$11,2,0) -> 2890 | O18: =IF(P17>=$Y$11,$Z$11,IF(AND(P17<$Y$11,P17>=$Y$10),$Z$10,IF(AND(P17<$Y$10,P17>=$Y$9),$Z$9,IF(AND(P17<$Y$9,P17>=$Y$8),$Z$8,IF(AND(P17<$Y$8,P17>=$Y$7),$Z$7,IF(AND(P17<$Y$7,P17>=$Y$6),$Z$6,IF(AND(P17<$Y$6,P17>=$Y$5),$Z$5))))))) -> 0.15 | P18: =P17-N18 -> 8710 | Q18: =M18-$M$16 -> 502 | R18: =N18/(1+$D$10)^(Q18/30) -> 2061.28945 | S18: =IF(Q18>$AA$21,$AA$21,Q18)*$AA$19*R18 -> 61.69439324 | W18: 1831.91
C19: data nascimento | D19: =D6 -> 2000-01-01 | M19: =EDATE(M18,12) -> 2024-01-01 | N19: =P18*O19+VLOOKUP(O19,$Z$5:$AA$11,2,0) -> 2392 | O19: =IF(P18>=$Y$11,$Z$11,IF(AND(P18<$Y$11,P18>=$Y$10),$Z$10,IF(AND(P18<$Y$10,P18>=$Y$9),$Z$9,IF(AND(P18<$Y$9,P18>=$Y$8),$Z$8,IF(AND(P18<$Y$8,P18>=$Y$7),$Z$7,IF(AND(P18<$Y$7,P18>=$Y$6),$Z$6,IF(AND(P18<$Y$6,P18>=$Y$5),$Z$5))))))) -> 0.2 | P19: 6318 | Q19: =M19-$M$16 -> 867 | R19: =N19/(1+$D$10)^(Q19/30) -> 1334.42808 | S19: =IF(Q19>$AA$21,$AA$21,Q19)*$AA$19*R19 -> 39.93943243 | W19: 1373.29 | Z19: Alíquota Diária | AA19: 8.2e-05
C20: data corte | D20: =DATE(2021,MONTH(D19),1)-D15 -> 2020-12-22 | G20: Observação | M20: =EDATE(M19,12) -> 2025-01-01 | N20: =P19*O20+VLOOKUP(O20,$Z$5:$AA$11,2,0) -> 1913.6 | O20: =IF(P19>=$Y$11,$Z$11,IF(AND(P19<$Y$11,P19>=$Y$10),$Z$10,IF(AND(P19<$Y$10,P19>=$Y$9),$Z$9,IF(AND(P19<$Y$9,P19>=$Y$8),$Z$8,IF(AND(P19<$Y$8,P19>=$Y$7),$Z$7,IF(AND(P19<$Y$7,P19>=$Y$6),$Z$6,IF(AND(P19<$Y$6,P19>=$Y$5),$Z$5))))))) -> 0.2 | P20: 4404.4 | Q20: =M20-$M$16 -> 1233 | R20: =N20/(1+$D$10)^(Q20/30) -> 834.4218538 | S20: =IF(Q20>$AA$21,$AA$21,Q20)*$AA$19*R20 -> 24.97424608 | W20: 961.3 | Z20: Alíquota Add | AA20: 0.0038
C21: AjusteVcto | D21: =IF(D16<D20,"este ano","proximo ano") -> proximo ano | G21: Consolidado | H21: =IF(H22<>"",H22,"") ->  | M21: =EDATE(M20,12) -> 2026-01-01 | N21: =P20*O21+VLOOKUP(O21,$Z$5:$AA$11,2,0) -> 1471.32 | O21: =IF(P20>=$Y$11,$Z$11,IF(AND(P20<$Y$11,P20>=$Y$10),$Z$10,IF(AND(P20<$Y$10,P20>=$Y$9),$Z$9,IF(AND(P20<$Y$9,P20>=$Y$8),$Z$8,IF(AND(P20<$Y$8,P20>=$Y$7),$Z$7,IF(AND(P20<$Y$7,P20>=$Y$6),$Z$6,IF(AND(P20<$Y$6,P20>=$Y$5),$Z$5))))))) -> 0.3 | P21: 2933.08 | Q21: =M21-$M$16 -> 1598 | R21: =N21/(1+$D$10)^(Q21/30) -> 501.8044463 | S21: =IF(Q21>$AA$21,$AA$21,Q21)*$AA$19*R21 -> 15.01900708 | W21: 672.91 | Z21: prazo | AA21: 365
C22: 1ºvcto | D22: =IF(D21="este ano",DATE(YEAR(D16),MONTH(D19),1),DATE(YEAR(D16)+1,MONTH(D19),1)) -> 2022-01-01 | G22: Troco mínimo | H22: =IF(OR(AND(G5="Saldo FGTS",D8<$AJ$7),AND(D5="Saldo FGTS",H5<$AJ$7)),"Fora do valor mínimo permitido","") -> 
M23: Simulação por Valor Financiado (Precisa de Meta Taxa)
C24: Data Simulação | R24: Financiado | S24: IOF | T24: Lib. Cliente
C25: Inicio da "Não Contratação" | D25: =D20 -> 2020-12-22 | N25: =SUM(N27:N31) -> 1401.051369 | P25: 1460.212527 | R25: =SUM(R27:R31) -> 1024.531596 | S25: =SUM(S27:S31)+R25*$AA$20 -> 24.53159635 | T25: =R25-S25 -> 1000 | Z25: CET | AA25: =XIRR(N26:N31,M26:M31) -> 0.2785188615
C26: Fim da "Não Contratação" | D26: =DATE(YEAR(D25),MONTH(EDATE(D25,1)),1) -> 2020-01-01 | M26: =M16 -> 2021-08-17 | N26: =-SUM(R27:R31) -> -1024.531596 | Z26: Taxa Ano | AA26: =(1+AA25)^(360/365)-1 -> 0.2742228763
C27: Permite Contratação | D27: =IF(AND(D18>=D25,D18<=D26),"Não","Sim") -> Sim | M27: =M17 -> 2022-01-01 | N27: =P25*O27+VLOOKUP(O27,$Z$5:$AA$11,2,0) -> 588.0637581 | O27: =IF(P25>=$Y$11,$Z$11,IF(AND(P25<$Y$11,P25>=$Y$10),$Z$10,IF(AND(P25<$Y$10,P25>=$Y$9),$Z$9,IF(AND(P25<$Y$9,P25>=$Y$8),$Z$8,IF(AND(P25<$Y$8,P25>=$Y$7),$Z$7,IF(AND(P25<$Y$7,P25>=$Y$6),$Z$6,IF(AND(P25<$Y$6,P25>=$Y$5),$Z$5))))))) -> 0.3 | P27: =P25-N27 -> 872.1487689 | Q27: =M27-$M$26 -> 137 | R27: =N27/(1+$D$10)^(Q27/30) -> 536.2566535 | S27: =IF(Q27>$AA$21,$AA$21,Q27)*$AA$19*R27 -> 6.024307245 | Z27: Taxa mês conf. | AA27: =(1+AA26)^(1/12)-1 -> 0.02039999971
C28: Data da Simulação | D28: =WORKDAY(D26,1,) -> 2020-01-02 | M28: =EDATE(M27,12) -> 2023-01-01 | N28: =P27*O28+VLOOKUP(O28,$Z$5:$AA$11,2,0) -> 398.8595075 | O28: =IF(P27>=$Y$11,$Z$11,IF(AND(P27<$Y$11,P27>=$Y$10),$Z$10,IF(AND(P27<$Y$10,P27>=$Y$9),$Z$9,IF(AND(P27<$Y$9,P27>=$Y$8),$Z$8,IF(AND(P27<$Y$8,P27>=$Y$7),$Z$7,IF(AND(P27<$Y$7,P27>=$Y$6),$Z$6,IF(AND(P27<$Y$6,P27>=$Y$5),$Z$5))))))) -> 0.4 | P28: =P27-N28 -> 473.2892613 | Q28: =M28-$M$26 -> 502 | R28: =N28/(1+$D$10)^(Q28/30) -> 284.4861228 | S28: =IF(Q28>$AA$21,$AA$21,Q28)*$AA$19*R28 -> 8.514669656
C29: Validação Data | D29: =IF(OR(WEEKDAY(D28)=1,WEEKDAY(D28)=7,AG:AG=D28), "Não é dia Útil","É dia Útil") -> É dia Útil | M29: =EDATE(M28,12) -> 2024-01-01 | N29: =P28*O29+VLOOKUP(O29,$Z$5:$AA$11,2,0) -> 236.6446307 | O29: =IF(P28>=$Y$11,$Z$11,IF(AND(P28<$Y$11,P28>=$Y$10),$Z$10,IF(AND(P28<$Y$10,P28>=$Y$9),$Z$9,IF(AND(P28<$Y$9,P28>=$Y$8),$Z$8,IF(AND(P28<$Y$8,P28>=$Y$7),$Z$7,IF(AND(P28<$Y$7,P28>=$Y$6),$Z$6,IF(AND(P28<$Y$6,P28>=$Y$5),$Z$5))))))) -> 0.5 | P29: 236.6446307 | Q29: =M29-$M$26 -> 867 | R29: =N29/(1+$D$10)^(Q29/30) -> 132.0172409 | S29: =IF(Q29>$AA$21,$AA$21,Q29)*$AA$19*R29 -> 3.951276019 | Z29: Meta | AA29: =T25-D8 -> 1000
C30: Data Final Simulação | D30: =IF(D27="Não",D28,D18) -> 2021-08-17 | M30: =EDATE(M29,12) -> 2025-01-01 | N30: =P29*O30+VLOOKUP(O30,$Z$5:$AA$11,2,0) -> 118.3223153 | O30: =IF(P29>=$Y$11,$Z$11,IF(AND(P29<$Y$11,P29>=$Y$10),$Z$10,IF(AND(P29<$Y$10,P29>=$Y$9),$Z$9,IF(AND(P29<$Y$9,P29>=$Y$8),$Z$8,IF(AND(P29<$Y$8,P29>=$Y$7),$Z$7,IF(AND(P29<$Y$7,P29>=$Y$6),$Z$6,IF(AND(P29<$Y$6,P29>=$Y$5),$Z$5))))))) -> 0.5 | P30: 118.3223153 | Q30: =M30-$M$26 -> 1233 | R30: =N30/(1+$D$10)^(Q30/30) -> 51.59423375 | S30: =IF(Q30>$AA$21,$AA$21,Q30)*$AA$19*R30 -> 1.544215416 | Z30: valida meta | AA30: 0
M31: =EDATE(M30,12) -> 2026-01-01 | N31: =P30*O31+VLOOKUP(O31,$Z$5:$AA$11,2,0) -> 59.16115767 | O31: =IF(P30>=$Y$11,$Z$11,IF(AND(P30<$Y$11,P30>=$Y$10),$Z$10,IF(AND(P30<$Y$10,P30>=$Y$9),$Z$9,IF(AND(P30<$Y$9,P30>=$Y$8),$Z$8,IF(AND(P30<$Y$8,P30>=$Y$7),$Z$7,IF(AND(P30<$Y$7,P30>=$Y$6),$Z$6,IF(AND(P30<$Y$6,P30>=$Y$5),$Z$5))))))) -> 0.5 | P31: 59.16115767 | Q31: =M31-$M$26 -> 1598 | R31: =N31/(1+$D$10)^(Q31/30) -> 20.17734549 | S31: =IF(Q31>$AA$21,$AA$21,Q31)*$AA$19*R31 -> 0.6039079505 | Z31: teste | AA31: =IF(OR(T25-D8>1,T25-D8<-1,),1000000,ROUND(T25-D8,2)) -> 1000000
M33: Calculadora Safra
M34: =M26 -> 2021-08-17 | N34: =-SUM(P35:P39) -> -6768.312629 | P34: =SUM(P35:P39) -> 6768.312629 | Z34: CET | AA34: =IFERROR(XIRR(N34:N39,M34:M39),1000000) -> 0.2785188615
M35: =M34+360 -> 2022-08-12 | N35: =N17 -> 3400 | O35: =M35-$M$34 -> 360 | P35: =N35/(1+$D$10)^(O35/30) -> 2668.293006 | Z35: Taxa Ano | AA35: =(1+AA34)^(360/365)-1 -> 0.2742228763
M36: =M35+360 -> 2023-08-07 | N36: =N18 -> 2890 | O36: =M36-$M$34 -> 720 | P36: =N36/(1+$D$10)^(O36/30) -> 1779.946891 | Z36: Taxa mês conf. | AA36: =(1+AA35)^(1/12)-1 -> 0.02039999971
M37: =M36+360 -> 2024-08-01 | N37: =N19 -> 2392 | O37: =M37-$M$34 -> 1080 | P37: =N37/(1+$D$10)^(O37/30) -> 1156.178736
M38: =M37+360 -> 2025-07-27 | N38: =N20 -> 1913.6 | O38: =M38-$M$34 -> 1440 | P38: =N38/(1+$D$10)^(O38/30) -> 725.8879137
M39: =M38+360 -> 2026-07-22 | N39: =N21 -> 1471.32 | O39: =M39-$M$34 -> 1800 | P39: =N39/(1+$D$10)^(O39/30) -> 438.0060832

Sheet Importante (hidden)
B2: 1) vencimento sempre dia 01
B3: 2) após data corte vencimento +1 ano
B4: 3) no período de "não contratação" simular o próximo dia apto (02 do mês aniversário - dia útil?)
B5: 4) valor mínimo de liberação e saldo FGTS
B6: 5) prazo e taxa fixa
B7: 6) CEF não abre de final de semana
